fUST/lending_fUST_20250331
["ID","MTS","AMOUNT","RATE_DAILY","PERIOD"]
[356910172,1743420633017,-150.0,0.00018027,2]
[356910173,1743420633027,-150.0,0.00018027,2]
[356910174,1743420633038,-100631.16443021,0.00018478,2]
[356910175,1743420633048,-329.7459018,0.00018533,2]
[356910176,1743420633059,-420.0,0.00018631,2]
[356910177,1743420633070,-329.7459018,0.00018718,2]
[356910178,1743420633080,-150.0,0.00018854,2]
[356910179,1743420633090,-600.0,0.00018862,2]
[356910180,1743420633101,-151.0,0.00018862,2]
[356910181,1743420633111,-151.0,0.00018862,2]
[356910182,1743420633121,-151.0,0.00018862,2]
[356910183,1743420633131,-151.0,0.00018862,2]
[356910184,1743420633141,-151.0,0.00018862,2]
[356910185,1743420633151,-151.0,0.00018862,2]
[356910186,1743420633161,-2588.6814705,0.00018868,2]
[356910187,1743420633171,-2528.21819218,0.000189,2]
[356910188,1743420633181,-329.7459018,0.00018903,2]
[356910189,1743420633191,-622.2,0.00018917,2]
[356910190,1743420633203,-645.2214,0.00018972,2]
[356910191,1743420633213,-1016.35933959,0.00019,2]
[356910192,1743420633223,-159.4,0.00019,5]
[356910193,1743420633233,-669.0945918,0.00019027,2]
[356910194,1743420633243,-2112.7197831,0.00019076,2]
[356910195,1743420633252,-693.8510917,0.00019082,2]
[356910196,1743420633263,-329.7459018,0.00019088,2]
[356910197,1743420633272,-719.52358209,0.00019137,2]
[356910198,1743420633282,-150.0,0.00019137,2]
[356910199,1743420633292,-155.0,0.00019166,2]
[356910200,1743420633302,-115541.63536437,0.0001917,2]
[356910207,1743420638527,-151.0,0.00018862,2]
[356910208,1743420638538,-151.0,0.00018862,2]
[356910209,1743420638547,-151.0,0.00018862,2]
[356910210,1743420638558,-151.0,0.00018862,2]
[356910211,1743420638569,-151.0,0.00018862,2]
[356910212,1743420638580,-151.0,0.00018862,2]
[356910213,1743420638590,-151.0,0.00018862,2]
[356910214,1743420638600,-282.66659751,0.00018862,2]
[356910215,1743420638610,-25044.8886481,0.0001917,2]
[356910216,1743420638624,-911.94749805,0.0001917,2]
[356910217,1743420638639,-4469.29504145,0.0001917,2]
[356910225,1743420643583,-155.0,0.00019166,2]
[356910226,1743420643594,-1345.0,0.0001917,2]
[356910227,1743420643606,-2973.46607324,0.0001917,2]
[356910228,1743420643623,-14619.31788,0.0001917,2]
[356910229,1743420643642,-8768.20148358,0.0001917,2]
[356910237,1743420646676,-379.21825036,0.0001917,2]
[356910238,1743420646735,-13114.49271882,0.0001917,2]
[356910239,1743420646747,-3239.8,0.0001917,2]
[356910240,1743420646845,-849.7,0.0001917,2]
[356910322,1743421510083,9538.46298135,0.00014,3]
[356910323,1743421626367,-300.0,0.00014,3]
[356910324,1743421631437,-300.0,0.00014,3]
[356910325,1743421757967,-300.0,0.00014,3]
[356910326,1743421759294,-300.0,0.00014,3]
[356910327,1743421761095,-300.0,0.00014,3]
[356910391,1743421832987,-2949.568322,0.00013014,2]
[356910393,1743421832997,-187.11932,0.00013699,2]
[356910395,1743421833007,-219.22265857,0.00013959,2]
[356910397,1743421833017,-300.0,0.00013997,2]
[356910399,1743421833027,-2277.87414352,0.00013998,2]
[356910401,1743421833037,-500.0,0.00013999,2]
[356910403,1743421833049,-199.49905134,0.00013999,2]
[356910405,1743421833059,-500.0,0.00013999,2]
[356910407,1743421833069,-28961.53701865,0.00014,3]
[356910409,1743421833079,-301.2849496,0.00014059,2]
[356910411,1743421833088,-2443.94425246,0.000149,2]
[356910413,1743421833098,-2443.94425224,0.000149,2]
[356910415,1743421833110,-420.0,0.00015335,2]
[356910431,1743421833265,-2443.94425224,0.00015555,2]
[356910433,1743421833276,-24900.0,0.00015906,2]
[356910436,1743421833287,-164.8729509,0.00016167,2]
[356910438,1743421833298,-250.0,0.00016267,2]
[356910440,1743421833308,-2443.94425224,0.00016383,2]
[356910442,1743421833318,-270.657728,0.00016515,2]
[356910444,1743421833327,-587.0,0.000168,2]
[356910446,1743421833337,-5000.0,0.00016959,2]
[356910447,1743421833346,-2443.94425224,0.0001721,2]
[356910450,1743421833356,-2443.94425224,0.00018038,2]
[356910451,1743421833366,-823.0,0.00018405,2]
[356910454,1743421833376,-600.0,0.00018862,2]
[356910456,1743421833386,-2443.94425224,0.00018866,2]
[356910458,1743421833396,-1941.5111029,0.00018868,2]
[356910460,1743421833406,-622.2,0.00018917,2]
[356910462,1743421833416,-645.2214,0.00018972,2]
[356910464,1743421833426,-154.16242867,0.00019,2]
[356910466,1743421833437,-669.0945918,0.00019027,2]
[356910468,1743421833447,-302.0,0.00019067,2]
[356910470,1743421833456,-164.8729509,0.00019078,2]
[356910472,1743421833466,-12521.24729484,0.00019078,2]
[356910474,1743421833479,-357.39330428,0.00019078,2]
[356910771,1743421841015,-49.33462457,0.00013997,2]
[356910772,1743421841028,-185.17857543,0.00013997,2]
[356910773,1743421841038,-500.0,0.00013997,2]
[356910774,1743421841049,-500.0,0.00013997,2]
[356910775,1743421841060,-500.0,0.00013997,2]
[356910778,1743421841074,-500.0,0.00013997,2]
[356910780,1743421841089,-500.0,0.00013997,2]
[356910782,1743421841101,-500.0,0.00013997,2]
[356910785,1743421841116,-500.0,0.00013997,2]
[356910787,1743421841127,-500.0,0.00013997,2]
[356910789,1743421841138,-560.4694353,0.00013997,2]
[356910791,1743421841150,-500.0,0.00013997,2]
[356910793,1743421841162,-500.0,0.00013997,2]
[356910796,1743421841174,-500.0,0.00013997,2]
[356910798,1743421841186,-500.0,0.00013997,2]
[356910800,1743421841197,-500.0,0.00013997,2]
[356910802,1743421841209,-500.0,0.00013997,2]
[356910804,1743421841221,-500.0,0.00013997,2]
[356910806,1743421841231,-500.0,0.00013997,2]
[356910809,1743421841245,-500.0,0.00013997,2]
[356910811,1743421841256,-500.0,0.00013997,2]
[356910813,1743421841267,-500.0,0.00013997,2]
[356910815,1743421841278,-500.0,0.00013997,2]
[356910817,1743421841289,-500.0,0.00013997,2]
[356910819,1743421841300,-500.0,0.00013997,2]
[356910822,1743421841311,-500.0,0.00013997,2]
[356910824,1743421841322,-500.0,0.00013997,2]
[356910826,1743421841333,-500.0,0.00013997,2]
[356910828,1743421841344,-500.0,0.00013997,2]
[356910830,1743421841354,-500.0,0.00013997,2]
[356910833,1743421841366,-500.0,0.00013997,2]
[356910835,1743421841377,-254.31865452,0.00013997,2]
[356910837,1743421841390,-245.68134548,0.00013997,2]
[356910840,1743421841401,-500.0,0.00013997,2]
[356910842,1743421841412,-219.22265856,0.00016471,2]
[356910844,1743421841423,-155.0,0.00019067,2]
[356910846,1743421841434,-6954.60973825,0.00019078,2]
[356910848,1743421841447,-1492.80453059,0.00019078,2]
[356910851,1743421841461,-45893.53091465,0.00019078,2]
[356910899,1743421843795,-944.97427032,0.00019078,2]
[356910900,1743421843849,-18639.49539302,0.00019078,2]
[356910901,1743421843864,-37580.05644225,0.00019078,2]
[356910926,1743421846755,-219.22265856,0.00018982,2]
[356910927,1743421846765,-606.47734144,0.00019078,2]
[356910928,1743421846777,-109654.93196329,0.00019078,2]
[356910929,1743421846787,-693.8510917,0.00019082,2]
[356910930,1743421846796,-556.4,0.000191,15]
[356910931,1743421846806,-719.52358209,0.00019137,2]
[356910932,1743421846816,-3369.71798203,0.0001917,2]
[356910933,1743421846827,-13680.23196597,0.0001917,2]
[356910934,1743421846837,-468.369848,0.00019173,2]
[356910935,1743421846847,-156.01938242,0.00019173,2]
[356910936,1743421846856,-500.0,0.00019173,2]
[356910937,1743421846866,-500.32506724,0.00019173,2]
[356910938,1743421846875,-374.58440023,0.00019173,2]
[356910939,1743421846885,-500.0,0.00019173,2]
[356910940,1743421846894,-500.0,0.00019173,2]
[356910941,1743421846904,-223.72329359,0.00019173,2]
[356910942,1743421846913,-501.78532976,0.00019173,2]
[356910943,1743421846923,-478.6274358,0.00019173,2]
[356910944,1743421846933,-500.0,0.00019173,2]
[356910945,1743421846942,-475.16527302,0.00019173,2]
[356910946,1743421846952,-500.0,0.00019173,2]
[356910947,1743421846962,-500.0,0.00019173,2]
[356910948,1743421846971,-184.98082389,0.00019173,2]
[356910949,1743421846980,-500.0,0.00019173,2]
[356910950,1743421846990,-500.0,0.00019173,2]
[356910951,1743421846999,-500.0,0.00019173,2]
[356910952,1743421847009,-500.0,0.00019173,2]
[356910953,1743421847018,-500.0,0.00019173,2]
[356910954,1743421847028,-500.0,0.00019173,2]
[356910955,1743421847037,-500.0,0.00019173,2]
[356910956,1743421847047,-500.0,0.00019173,2]
[356910957,1743421847056,-160.02267289,0.00019173,2]
[356910958,1743421847065,-504.02827206,0.00019173,2]
[356910959,1743421847075,-511.76652633,0.00019173,2]
[356910960,1743421847086,-500.0,0.00019173,2]
[356910961,1743421847095,-513.1779678,0.00019173,2]
[356910962,1743421847104,-500.0,0.00019173,2]
[356910963,1743421847114,-500.0,0.00019173,2]
[356910964,1743421847127,-500.0,0.00019178,2]
[356910965,1743421847137,-500.0,0.00019178,2]
[356910966,1743421847149,-500.0,0.00019178,2]
[356910967,1743421847159,-624.77814538,0.00019178,2]
[356910968,1743421847169,-500.0,0.00019178,2]
[356910969,1743421847178,-500.0,0.00019178,2]
[356910970,1743421847188,-507.24454786,0.00019178,2]
[356910971,1743421847198,-500.0,0.00019178,2]
[356910972,1743421847207,-510.7318015,0.00019178,2]
[356910973,1743421847217,-500.0,0.00019178,2]
[356910974,1743421847226,-500.0,0.00019178,2]
[356910975,1743421847236,-510.1714316,0.00019178,2]
[356910976,1743421847247,-500.0,0.00019178,2]
[356910977,1743421847262,-500.0,0.00019178,2]
[356910978,1743421847272,-610.85527029,0.00019178,2]
[356910979,1743421847281,-500.0,0.00019178,2]
[356910980,1743421847291,-504.40856947,0.00019178,2]
[356910981,1743421847300,-500.0,0.00019178,2]
[356910982,1743421847310,-513.20878817,0.00019178,2]
[356910983,1743421847319,-500.0,0.00019178,2]
[356910984,1743421847331,-500.0,0.00019178,2]
[356910985,1743421847342,-500.0,0.00019178,2]
[356910986,1743421847352,-500.0,0.00019178,2]
[356910987,1743421847362,-500.0,0.00019178,2]
[356910988,1743421847372,-508.06516982,0.00019178,2]
[356910989,1743421847385,-500.0,0.00019178,2]
[356910990,1743421847395,-500.0,0.00019178,2]
[356910991,1743421847404,-571.58189934,0.00019178,2]
[356910992,1743421847414,-500.0,0.00019178,2]
[356910993,1743421847423,-500.0,0.00019178,2]
[356910994,1743421847433,-500.0,0.00019178,2]
[356910995,1743421847442,-500.0,0.00019178,2]
[356910996,1743421847452,-500.0,0.00019178,2]
[356910997,1743421847462,-500.0,0.00019178,2]
[356910998,1743421847471,-500.0,0.00019178,2]
[356910999,1743421847481,-500.0,0.00019178,2]
[356911000,1743421847490,-500.0,0.00019178,2]
[356911001,1743421847501,-500.0,0.00019178,2]
[356911002,1743421847511,-500.0,0.00019178,2]
[356911003,1743421847522,-500.0,0.00019178,2]
[356911004,1743421847532,-500.0,0.00019178,2]
[356911005,1743421847541,-500.0,0.00019178,2]
[356911006,1743421847551,-500.0,0.00019178,2]
[356911007,1743421847560,-500.0,0.00019178,2]
[356911008,1743421847570,-500.0,0.00019178,2]
[356911009,1743421847579,-500.0,0.00019178,2]
[356911010,1743421847589,-500.0,0.00019178,2]
[356911011,1743421847598,-500.0,0.00019178,2]
[356911012,1743421847608,-500.0,0.00019178,2]
[356911013,1743421847618,-500.0,0.00019178,2]
[356911014,1743421847627,-500.0,0.00019178,2]
[356911015,1743421847637,-500.0,0.00019178,2]
[356911016,1743421847647,-500.0,0.00019178,2]
[356911017,1743421847656,-500.0,0.00019178,2]
[356911018,1743421847666,-500.0,0.00019178,2]
[356911019,1743421847676,-500.0,0.00019178,2]
[356911020,1743421847687,-500.0,0.00019178,2]
[356911021,1743421847697,-500.0,0.00019178,2]
[356911022,1743421847706,-500.0,0.00019178,2]
[356911023,1743421847715,-500.0,0.00019178,2]
[356911024,1743421847725,-500.0,0.00019178,2]
[356911025,1743421847734,-500.0,0.00019178,2]
[356911026,1743421847745,-500.0,0.00019178,2]
[356911027,1743421847755,-500.0,0.00019178,2]
[356911028,1743421847765,-500.0,0.00019178,2]
[356911029,1743421847775,-539.56,0.00019178,2]
[356911030,1743421847785,-500.0,0.00019178,2]
[356911031,1743421847795,-500.0,0.00019178,2]
[356911032,1743421847804,-500.0,0.00019178,2]
[356911033,1743421847814,-500.0,0.00019178,2]
[356911034,1743421847824,-500.0,0.00019178,2]
[356911035,1743421847833,-500.0,0.00019178,2]
[356911036,1743421847843,-500.0,0.00019178,2]
[356911037,1743421847852,-500.0,0.00019178,2]
[356911038,1743421847862,-500.0,0.00019178,2]
[356911039,1743421847872,-500.0,0.00019178,2]
[356911040,1743421847882,-500.0,0.00019178,2]
[356911041,1743421847891,-500.0,0.00019178,2]
[356911042,1743421847901,-500.0,0.00019178,2]
[356911043,1743421847911,-500.0,0.00019178,2]
[356911044,1743421847920,-500.0,0.00019178,2]
[356911045,1743421847930,-500.0,0.00019178,2]
[356911046,1743421847940,-500.0,0.00019178,2]
[356911047,1743421847949,-500.0,0.00019178,2]
[356911048,1743421847959,-500.0,0.00019178,2]
[356911049,1743421847969,-500.0,0.00019178,2]
[356911050,1743421847978,-500.0,0.00019178,2]
[356911051,1743421847988,-500.0,0.00019178,2]
[356911052,1743421847999,-500.0,0.00019178,2]
[356911053,1743421848009,-500.0,0.00019178,2]
[356911054,1743421848019,-500.0,0.00019178,2]
[356911055,1743421848029,-500.0,0.00019178,2]
[356911056,1743421848039,-500.0,0.00019178,2]
[356911057,1743421848050,-500.0,0.00019178,2]
[356911058,1743421848060,-500.0,0.00019178,2]
[356911059,1743421848069,-500.0,0.00019178,2]
[356911060,1743421848080,-565.9,0.00019178,2]
[356911061,1743421848090,-500.0,0.00019178,2]
[356911062,1743421848100,-500.0,0.00019178,2]
[356911063,1743421848110,-500.0,0.00019178,2]
[356911064,1743421848122,-500.0,0.00019178,2]
[356911065,1743421848132,-500.0,0.00019178,2]
[356911066,1743421848142,-500.0,0.00019178,2]
[356911067,1743421848152,-500.0,0.00019178,2]
[356911068,1743421848162,-500.0,0.00019178,2]
[356911069,1743421848172,-500.0,0.00019178,2]
[356911070,1743421848182,-500.0,0.00019178,2]
[356911071,1743421848192,-500.0,0.00019178,2]
[356911072,1743421848203,-500.0,0.00019178,2]
[356911073,1743421848213,-500.0,0.00019178,2]
[356911074,1743421848223,-500.0,0.00019178,2]
[356911075,1743421848233,-500.0,0.00019178,2]
[356911076,1743421848245,-500.0,0.00019178,2]
[356911077,1743421848255,-500.0,0.00019178,2]
[356911078,1743421848264,-500.0,0.00019178,2]
[356911079,1743421848275,-500.0,0.00019178,2]
[356911080,1743421848285,-500.0,0.00019178,2]
[356911081,1743421848295,-500.0,0.00019178,2]
[356911082,1743421848305,-500.0,0.00019178,2]
[356911083,1743421848315,-500.0,0.00019178,2]
[356911084,1743421848324,-500.0,0.00019178,2]
[356911085,1743421848334,-500.0,0.00019178,2]
[356911086,1743421848344,-500.0,0.00019178,2]
[356911087,1743421848354,-500.0,0.00019178,2]
[356911088,1743421848363,-500.0,0.00019178,2]
[356911089,1743421848373,-500.0,0.00019178,2]
[356911090,1743421848383,-500.0,0.00019178,2]
[356911091,1743421848393,-500.0,0.00019178,2]
[356911092,1743421848402,-500.0,0.00019178,2]
[356911093,1743421848412,-500.0,0.00019178,2]
[356911094,1743421848422,-500.0,0.00019178,2]
[356911095,1743421848431,-500.0,0.00019178,2]
[356911096,1743421848441,-500.0,0.00019178,2]
[356911097,1743421848450,-349.19897826,0.00019178,2]
[356911098,1743421848461,-500.0,0.00019178,2]
[356911099,1743421848471,-500.0,0.00019178,2]
[356911100,1743421848481,-500.0,0.00019178,2]
[356911101,1743421848491,-500.0,0.00019178,2]
[356911102,1743421848502,-500.0,0.00019178,2]
[356911103,1743421848512,-500.0,0.00019178,2]
[356911104,1743421848522,-500.0,0.00019178,2]
[356911105,1743421848532,-500.0,0.00019178,2]
[356911106,1743421848542,-500.0,0.00019178,2]
[356911107,1743421848552,-500.0,0.00019178,2]
[356911108,1743421848562,-500.0,0.00019178,2]
[356911109,1743421848572,-500.0,0.00019178,2]
[356911110,1743421848582,-500.0,0.00019178,2]
[356911111,1743421848591,-500.0,0.00019178,2]
[356911112,1743421848601,-500.0,0.00019178,2]
[356911113,1743421848611,-500.0,0.00019178,2]
[356911114,1743421848621,-500.0,0.00019178,2]
[356911115,1743421848631,-500.0,0.00019178,2]
[356911116,1743421848642,-500.0,0.00019178,2]
[356911117,1743421848652,-500.0,0.00019178,2]
[356911118,1743421848662,-500.0,0.00019178,2]
[356911119,1743421848672,-500.0,0.00019178,2]
[356911120,1743421848682,-500.0,0.00019178,2]
[356911121,1743421848692,-500.0,0.00019178,2]
[356911122,1743421848702,-500.0,0.00019178,2]
[356911123,1743421848712,-500.0,0.00019178,2]
[356911124,1743421848721,-500.0,0.00019178,2]
[356911125,1743421848731,-263.54126798,0.00019178,2]
[356911126,1743421848741,-500.0,0.00019178,2]
[356911127,1743421848751,-190.65008006,0.00019178,2]
[356911128,1743421848762,-500.0,0.00019178,2]
[356911129,1743421848772,-500.0,0.00019178,2]
[356911130,1743421848782,-455.36999583,0.00019178,2]
[356911131,1743421848792,-500.0,0.00019178,2]
[356911132,1743421848802,-500.0,0.00019178,2]
[356911133,1743421848812,-500.0,0.00019178,2]
[356911134,1743421848822,-500.0,0.00019178,2]
[356911135,1743421848833,-500.0,0.00019178,2]
[356911136,1743421848843,-567.68219206,0.00019178,2]
[356911137,1743421848854,-500.0,0.00019178,2]
[356911138,1743421848865,-500.0,0.00019178,2]
[356911139,1743421848876,-500.0,0.00019178,2]
[356911140,1743421848886,-500.0,0.00019178,2]
[356911141,1743421848896,-414.85814424,0.00019178,2]
[356911142,1743421848906,-500.0,0.00019178,2]
[356911143,1743421848916,-500.0,0.00019178,2]
[356911144,1743421848926,-500.0,0.00019178,2]
[356911145,1743421848936,-500.0,0.00019178,2]
[356911146,1743421848946,-727.8,0.00019178,2]
[356911147,1743421848956,-500.0,0.00019178,2]
[356911148,1743421848966,-500.0,0.00019178,2]
[356911149,1743421848976,-500.0,0.00019178,2]
[356911150,1743421848986,-500.0,0.00019178,2]
[356911151,1743421848997,-500.0,0.00019178,2]
[356911152,1743421849007,-500.0,0.00019178,2]
[356911153,1743421849018,-200.0,0.00019178,2]
[356911154,1743421849028,-1214.21,0.00019178,2]
[356911155,1743421849038,-500.0,0.00019178,2]
[356911156,1743421849048,-500.0,0.00019178,2]
[356911157,1743421849059,-500.0,0.00019178,2]
[356911158,1743421849069,-500.0,0.00019178,2]
[356911159,1743421849079,-500.0,0.00019178,2]
[356911160,1743421849089,-458.99928241,0.00019178,2]
[356911161,1743421849099,-3634.02,0.00019178,2]
[356911162,1743421849111,-500.0,0.00019178,2]
[356911163,1743421849125,-617.74,0.00019178,2]
[356911164,1743421849135,-518.45,0.00019178,2]
[356911165,1743421849144,-500.0,0.00019178,2]
[356911166,1743421849154,-500.0,0.00019178,2]
[356911167,1743421849166,-500.0,0.00019178,2]
[356911168,1743421849176,-500.0,0.00019178,2]
[356911169,1743421849186,-500.0,0.00019178,2]
[356911170,1743421849196,-536.22,0.00019178,2]
[356911171,1743421849206,-607.05651899,0.00019178,2]
[356911172,1743421849216,-500.0,0.00019178,2]
[356911173,1743421849227,-546.8,0.00019178,2]
[356911174,1743421849237,-500.0,0.00019178,2]
[356911175,1743421849250,-762.31,0.00019178,2]
[356911176,1743421849260,-500.0,0.00019178,2]
[356911177,1743421849270,-500.0,0.00019178,2]
[356911178,1743421849280,-511.78208727,0.00019178,2]
[356911179,1743421849290,-500.0,0.00019178,2]
[356911180,1743421849301,-780.87,0.00019178,2]
[356911181,1743421849312,-662.63,0.00019178,2]
[356911182,1743421849323,-500.0,0.00019178,2]
[356911183,1743421849334,-929.99,0.00019178,2]
[356911184,1743421849345,-780.5,0.00019178,2]
[356911185,1743421849355,-500.0,0.00019178,2]
[356911186,1743421849366,-500.0,0.00019178,2]
[356911187,1743421849376,-500.0,0.00019178,2]
[356911188,1743421849387,-500.0,0.00019178,2]
[356911189,1743421849397,-500.0,0.00019178,2]
[356911190,1743421849406,-500.0,0.00019178,2]
[356911191,1743421849416,-500.0,0.00019178,2]
[356911192,1743421849426,-969.86,0.00019178,2]
[356911193,1743421849436,-500.0,0.00019178,2]
[356911194,1743421849445,-500.0,0.00019178,2]
[356911195,1743421849455,-500.0,0.00019178,2]
[356911196,1743421849465,-3122.58,0.00019178,2]
[356911197,1743421849475,-500.0,0.00019178,2]
[356911198,1743421849485,-500.0,0.00019178,2]
[356911199,1743421849495,-500.0,0.00019178,2]
[356911200,1743421849505,-500.0,0.00019178,2]
[356911201,1743421849514,-500.0,0.00019178,2]
[356911202,1743421849524,-849.49,0.00019178,2]
[356911203,1743421849534,-500.0,0.00019178,2]
[356911204,1743421849543,-259.73,0.00019178,2]
[356911205,1743421849553,-500.0,0.00019178,2]
[356911206,1743421849563,-500.0,0.00019178,2]
[356911207,1743421849574,-684.81,0.00019178,2]
[356911208,1743421849584,-500.0,0.00019178,2]
[356911209,1743421849594,-500.0,0.00019178,2]
[356911210,1743421849604,-500.0,0.00019178,2]
[356911211,1743421849614,-5460.83,0.00019178,2]
[356911212,1743421849624,-567.37,0.00019178,2]
[356911213,1743421849634,-500.0,0.00019178,2]
[356911214,1743421849643,-500.0,0.00019178,2]
[356911215,1743421849653,-500.0,0.00019178,2]
[356911216,1743421849663,-2091.1,0.00019178,2]
[356911217,1743421849673,-1108.23,0.00019178,2]
[356911218,1743421849682,-500.0,0.00019178,2]
[356911219,1743421849692,-780.91,0.00019178,2]
[356911220,1743421849701,-500.0,0.00019178,2]
[356911221,1743421849711,-500.0,0.00019178,2]
[356911222,1743421849721,-500.0,0.00019178,2]
[356911223,1743421849731,-500.0,0.00019178,2]
[356911224,1743421849741,-500.0,0.00019178,2]
[356911225,1743421849751,-500.0,0.00019178,2]
[356911226,1743421849761,-500.0,0.00019178,2]
[356911227,1743421849772,-1335.64,0.00019178,2]
[356911228,1743421849782,-2267.82,0.00019178,2]
[356911229,1743421849792,-357.64824788,0.00019178,2]
[356911230,1743421849803,-603.55900774,0.00019178,2]
[356911231,1743421849813,-500.0,0.00019178,2]
[356911232,1743421849823,-2200.58,0.00019178,2]
[356911233,1743421849834,-588.5,0.00019178,2]
[356911234,1743421849844,-500.0,0.00019178,2]
[356911235,1743421849854,-500.0,0.00019178,2]
[356911236,1743421849864,-446.80997379,0.00019178,2]
[356911237,1743421849874,-1280.01,0.00019178,2]
[356911238,1743421849884,-500.0,0.00019178,2]
[356911239,1743421849893,-500.0,0.00019178,2]
[356911240,1743421849905,-888.93,0.00019178,2]
[356911241,1743421849915,-500.0,0.00019178,2]
[356911242,1743421849925,-500.0,0.00019178,2]
[356911243,1743421849935,-500.0,0.00019178,2]
[356911244,1743421849945,-500.0,0.00019178,2]
[356911245,1743421850091,-500.0,0.00019178,2]
[356911246,1743421850101,-500.0,0.00019178,2]
[356911247,1743421850111,-500.0,0.00019178,2]
[356911248,1743421850124,-500.0,0.00019178,2]
[356911249,1743421850134,-500.0,0.00019178,2]
[356911250,1743421850143,-1283.98,0.00019178,2]
[356911251,1743421850153,-933.51,0.00019178,2]
[356911252,1743421850163,-500.0,0.00019178,2]
[356911253,1743421850173,-1150.26,0.00019178,2]
[356911254,1743421850183,-370.66092448,0.00019178,2]
[356911255,1743421850193,-500.0,0.00019178,2]
[356911256,1743421850203,-500.0,0.00019178,2]
[356911257,1743421850214,-500.0,0.00019178,2]
[356911258,1743421850224,-500.0,0.00019178,2]
[356911259,1743421850233,-545.44899159,0.00019178,2]
[356911260,1743421850243,-508.16156616,0.00019178,2]
[356911261,1743421850255,-3210.25,0.00019178,2]
[356911262,1743421850265,-500.0,0.00019178,2]
[356911263,1743421850275,-1553.33,0.00019178,2]
[356911264,1743421850285,-500.0,0.00019178,2]
[356911265,1743421850296,-222.25229404,0.00019178,2]
[356911266,1743421850305,-703.4,0.00019178,2]
[356911267,1743421850315,-746.14595463,0.00019192,2]
[356911268,1743421850323,-500.0,0.00019195,2]
[356911269,1743421850332,-556.208,0.00019231,2]
[356911270,1743421850342,-264.857,0.00019231,2]
[356911271,1743421850352,-1915.0,0.00019231,2]
[356911272,1743421850362,-2266.0,0.00019231,2]
[356911273,1743421850371,-150.0,0.00019231,2]
[356911274,1743421850381,-401.0,0.00019231,2]
[356911275,1743421850390,-181.636754,0.00019231,2]
[356911276,1743421850400,-181.636754,0.00019231,2]
[356911277,1743421850410,-773.75335495,0.00019247,2]
[356911278,1743421850419,-160.0,0.00019281,2]
[356911279,1743421850429,-835.65699134,0.00019281,2]
[356911280,1743421850438,-4375.79103085,0.00019281,2]
[356911281,1743421850448,-418.85542,0.00019281,2]
[356911282,1743421850458,-160.0,0.00019281,2]
[356911283,1743421850467,-310.30408551,0.000193,2]
[356911284,1743421850477,-18438.26628463,0.00019301,2]
[356911285,1743421850487,-802.38222908,0.00019302,2]
[356911286,1743421850496,-42798.89091908,0.00019329,2]
[356911287,1743421850506,-832.07037156,0.00019357,2]
[356911288,1743421850515,-151.0,0.00019371,2]
[356911289,1743421850525,-500.0,0.00019373,2]
[356911290,1743421850536,-500.0,0.00019373,2]
[356911291,1743421850545,-500.0,0.00019373,2]
[356911292,1743421850555,-500.0,0.00019373,2]
[356911293,1743421850565,-500.0,0.00019373,2]